bitfinex-derivatives/quotes_BNBF0:USTF0_20250807
["timestamp","ask_amount","ask_price","bid_price","bid_amount"]
[1754549300802,1.1636446,769.24,768.15,0.87062001]
[1754549301002,1.1636446,769.29,768.19,0.87062001]
[1754549301198,1.1636446,769.3,768.19,0.87062001]
[1754549301502,1.1636446,769.32,768.2,0.87062001]
[1754549301798,1.1636446,769.33,768.21,0.87062001]
[1754549302500,1.1636446,769.33,768.07,1.334]
[1754549302501,1.1636446,769.33,768.2,0.87062001]
[1754549303402,1.1636446,769.34,768.2,0.87062001]
[1754549305297,1.1636446,769.32,768.19,0.87062001]
[1754549305498,1.1636446,769.33,768.2,0.87062001]
[1754549305702,1.1636446,769.32,768.19,0.87062001]
[1754549306102,1.1636446,769.31,768.19,0.87062001]
[1754549306303,0.22632233,769.36,768.19,0.87062001]
[1754549306304,1.1636446,769.32,768.19,0.87062001]
[1754549306499,1.1636446,769.32,768.2,0.87062001]
[1754549309706,1.1636446,769.32,768.21,0.87062001]
[1754549310203,1.1636446,769.32,768.2,0.87062001]
[1754549310402,1.1636446,769.29,768.22,0.87062001]
[1754549310903,1.1636446,769.28,768.22,0.87062001]
[1754549311301,1.1636446,769.29,768.22,0.87062001]
[1754549311502,1.1636446,769.29,768.23,0.87062001]
[1754549312207,1.1636446,769.29,768.21,0.87062001]
[1754549312507,1.1636446,769.29,768.24,1.277]
[1754549313306,1.1636446,769.31,768.24,1.277]
[1754549313507,1.1636446,769.32,768.24,1.277]
[1754549313705,1.1636446,769.33,768.24,1.277]
[1754549314006,1.1636446,769.32,768.24,1.277]
[1754549314201,1.1636446,769.33,768.24,1.277]
[1754549314406,1.1636446,769.34,768.24,1.277]
[1754549315407,1.1636446,769.35,768.24,1.277]
[1754549317105,1.38996693,769.36,768.24,1.277]
[1754549317305,1.1636446,769.35,768.24,1.277]
[1754549317507,1.1636446,769.34,768.24,1.277]
[1754549318610,1.1636446,769.35,768.24,1.277]
[1754549318811,1.38996693,769.36,768.24,1.277]
[1754549319306,1.1636446,769.35,768.24,1.277]
[1754549319607,0.22632233,769.36,768.24,1.277]
[1754549320107,1.1636446,769.33,768.24,1.277]
[1754549320307,1.1636446,769.32,768.24,1.277]
[1754549320507,1.1636446,769.33,768.24,1.277]
[1754549321008,1.1636446,769.03,768.24,1.277]
[1754549321209,1.1636446,769.04,768.24,1.277]
[1754549321409,1.1636446,769.05,768.24,1.277]
[1754549321810,1.1636446,769.04,768.24,1.277]
[1754549322514,1.1636446,769.01,768.24,1.277]
[1754549322914,1.1636446,769.0,768.24,1.277]
[1754549323216,1.1636446,769.01,768.24,1.277]
[1754549323515,1.1636446,769.03,768.24,1.277]
[1754549323716,1.1636446,769.02,768.24,1.277]
[1754549323911,1.1636446,769.01,768.24,1.277]
[1754549324112,1.1636446,769.11,768.24,1.277]
[1754549324516,1.1636446,769.09,768.24,1.277]
[1754549324718,1.1636446,769.11,768.24,1.277]
[1754549324916,1.1636446,769.12,768.24,1.277]
[1754549325516,1.1636446,769.02,768.24,1.277]
[1754549325912,1.1636446,769.03,768.24,1.277]
[1754549326116,1.1636446,769.02,768.24,1.277]
[1754549326316,1.1636446,769.01,768.24,1.277]
[1754549326512,1.1636446,769.0,768.24,1.277]
[1754549326711,1.1636446,768.99,768.24,1.277]
[1754549327011,1.1636446,769.01,768.24,1.277]
[1754549327214,1.1636446,769.07,768.24,1.277]
[1754549327617,1.1636446,769.12,768.24,1.277]
[1754549328414,1.1636446,769.13,768.24,1.277]
[1754549328614,1.1636446,769.14,768.24,1.277]
[1754549328814,1.1636446,769.16,768.24,1.277]
[1754549330815,1.1636446,769.17,768.24,1.277]
[1754549331219,1.1636446,769.16,768.24,1.277]
[1754549332215,1.1636446,769.15,768.24,1.277]
[1754549333115,1.1636446,769.14,768.24,1.277]
[1754549334124,1.1636446,769.13,768.24,1.277]
[1754549334523,1.7533074,769.29,768.24,1.277]
[1754549334524,1.1636446,769.25,768.24,1.277]
[1754549335124,1.1636446,769.21,768.24,1.277]
[1754549335435,1.1636446,769.19,768.24,1.277]
[1754549335823,1.1636446,769.18,768.24,1.277]
[1754549336319,1.1636446,769.1,768.24,1.277]
[1754549336724,1.1636446,769.11,768.24,1.277]
[1754549336923,1.1636446,769.08,768.24,1.277]
[1754549337826,1.1636446,768.94,768.24,1.277]
[1754549339219,1.1636446,768.93,768.24,1.277]
[1754549341224,1.1636446,768.94,768.24,1.277]
[1754549341829,1.1636446,768.93,768.24,1.277]
[1754549342229,1.1636446,768.92,768.24,1.277]
[1754549346231,1.1636446,768.93,768.24,1.277]
[1754549346433,1.1636446,768.92,768.24,1.277]
[1754549346633,1.1636446,768.88,768.24,1.277]
[1754549346932,1.1636446,768.87,768.24,1.277]
[1754549347132,1.1636446,768.88,768.24,1.277]
[1754549347726,1.1636446,768.87,768.24,1.277]
[1754549347930,1.1636446,768.88,768.24,1.277]
[1754549348230,1.1636446,768.89,768.24,1.277]
[1754549349333,1.1636446,768.9,768.24,1.277]
[1754549350335,1.1636446,768.91,768.24,1.277]
[1754549350534,1.1636446,768.9,768.24,1.277]
[1754549351135,1.1636446,768.89,768.24,1.277]
[1754549352134,1.1636446,768.9,768.24,1.277]
[1754549353135,1.1636446,768.89,768.24,1.277]
[1754549353333,1.1636446,768.9,768.24,1.277]
[1754549354434,1.1636446,768.91,768.24,1.277]
[1754549354834,1.1636446,768.9,768.24,1.277]
[1754549355230,1.1636446,768.91,768.24,1.277]
[1754549356534,1.1636446,768.9,768.24,1.277]
[1754549357431,1.1636446,768.91,767.7,0.87062001]
[1754549357635,1.1636446,768.9,767.7,0.87062001]
[1754549357834,1.1636446,768.84,767.64,0.87062001]
[1754549358030,1.1636446,768.79,767.59,0.87062001]
[1754549358430,1.1636446,768.8,767.59,0.87062001]
[1754549359733,1.1636446,768.79,767.59,0.87062001]
[1754549360236,1.1636446,768.79,767.45,1.1627621]
[1754549360237,1.1636446,768.79,767.6,0.87062001]
[1754549360438,1.1636446,768.82,767.6,0.926]
[1754549360838,1.1636446,768.86,767.6,0.926]
[1754549361238,1.1636446,768.87,767.6,0.926]
[1754549362943,1.1636446,768.86,767.6,0.926]
[1754549363246,1.1636446,768.87,767.6,0.926]
[1754549363443,1.1636446,768.86,767.6,0.926]
[1754549364849,1.1636446,768.88,767.6,0.926]
[1754549365048,1.1636446,768.87,767.6,0.926]
[1754549365549,1.1636446,768.88,767.6,0.926]
[1754549365747,1.1636446,768.87,767.6,0.926]
[1754549367047,1.1636446,768.9,767.6,0.926]
[1754549367246,1.1636446,768.89,767.6,0.926]
[1754549367748,1.7533074,769.08,767.6,0.926]
[1754549367749,1.1636446,768.9,767.6,0.926]
[1754549367945,1.1636446,768.88,767.6,0.926]
[1754549368262,1.1636446,768.87,767.6,0.926]
[1754549369053,1.1636446,768.88,767.6,0.926]
[1754549370254,1.1636446,768.87,767.6,0.926]
[1754549371455,1.1636446,768.86,767.6,0.926]
[1754549372256,1.1636446,768.85,767.6,0.926]
[1754549373356,1.1636446,768.84,767.6,0.926]
[1754549373557,1.1636446,768.89,767.63,0.87062001]
[1754549373752,1.1636446,768.91,767.64,0.87062001]
[1754549374456,1.1636446,768.89,767.65,0.87062001]
[1754549374654,1.1636446,768.94,767.7,0.87062001]
[1754549375054,1.1636446,768.92,767.7,0.87062001]
[1754549375253,1.1636446,768.92,767.72,0.87062001]
[1754549375554,1.1636446,768.92,767.73,0.87062001]
[1754549376359,1.1636446,768.9,767.74,0.87062001]
[1754549376856,1.1636446,768.85,767.76,0.87062001]
[1754549377258,1.1636446,768.81,767.76,0.87062001]
[1754549377756,1.1636446,768.83,767.75,0.87062001]
[1754549377960,1.1636446,768.83,767.76,0.87062001]
[1754549378260,1.1636446,768.78,767.76,2.04462001]
[1754549378459,1.1636446,768.79,767.76,2.04462001]
[1754549378956,1.1636446,768.78,767.76,2.04462001]
[1754549379156,1.1636446,768.78,767.77,0.87062001]
[1754549379356,1.1636446,768.73,767.78,0.87062001]
[1754549380255,1.1636446,768.72,767.79,0.87062001]
[1754549380659,1.1636446,768.73,767.79,0.87062001]
[1754549380855,1.1636446,768.7,767.8,0.87062001]
[1754549381156,1.1636446,768.69,767.79,0.87062001]
[1754549381659,1.1636446,768.68,767.79,0.87062001]
[1754549382359,1.1636446,768.68,767.78,0.87062001]
[1754549383957,1.1636446,768.68,767.78,0.87525605]
[1754549384360,1.1636446,768.69,767.79,0.87525605]
[1754549384662,1.1636446,768.7,767.79,0.87525605]
[1754549384961,1.1636446,768.68,767.8,0.87525605]
[1754549385260,1.1636446,768.68,767.81,0.87525605]
[1754549385459,1.1636446,768.68,767.8,0.87525605]
[1754549386257,1.1636446,768.68,767.81,0.87525605]
[1754549387157,1.1636446,768.67,767.81,0.87525605]
[1754549387557,1.1636446,768.64,767.81,0.87525605]
[1754549388058,1.1636446,768.63,767.8,0.87525605]
[1754549388257,1.1636446,768.63,767.76,1.174]
[1754549388458,1.1636446,768.78,767.76,1.174]
[1754549390465,1.1636446,768.77,767.76,1.174]
[1754549390765,1.1636446,768.67,767.76,1.174]
[1754549391365,1.1636446,768.66,767.76,1.174]
[1754549392362,1.1636446,768.65,767.76,1.174]
[1754549394368,1.1636446,768.64,767.76,1.174]
[1754549395368,1.1636446,768.63,767.76,1.174]
[1754549395868,1.1636446,768.64,767.76,1.174]
[1754549396367,1.1636446,768.63,767.76,1.174]
[1754549397868,1.1636446,768.65,767.76,1.174]
[1754549398165,1.1636446,768.56,767.76,1.174]
[1754549398369,1.7533074,768.72,767.76,1.174]
[1754549398370,1.1636446,768.55,767.76,1.174]
[1754549401971,1.1636446,768.56,767.76,1.174]
[1754549403270,0.22632233,769.36,767.76,1.174]
[1754549403271,1.1636446,768.55,767.76,1.174]
[1754549403767,1.1636446,768.61,767.76,1.174]
[1754549404770,1.1636446,768.62,767.76,1.174]
[1754549405772,1.1636446,768.49,767.77,0.87525605]
[1754549405971,2.922179,769.19,767.77,0.87525605]
[1754549405972,1.1636446,768.48,767.77,0.87525605]
[1754549407371,1.1636446,768.47,767.76,2.04925605]
[1754549407977,1.1636446,768.44,767.76,1.174]
[1754549409874,1.1636446,768.45,767.76,1.174]
[1754549410479,1.1636446,768.49,767.76,1.174]
[1754549411380,1.1636446,768.48,767.76,1.174]
[1754549414282,1.1636446,768.48,767.73,0.87525605]
[1754549414777,1.1636446,768.47,767.73,0.87525605]
[1754549414980,1.1636446,768.48,767.73,0.87525605]
[1754549415182,1.1636446,768.47,767.73,0.87525605]
[1754549417184,1.1636446,768.47,767.74,0.96]
[1754549417684,1.1636446,768.48,767.75,0.87525605]
[1754549418179,1.1636446,768.48,767.74,1.83525605]
[1754549418381,1.1636446,768.48,767.75,0.87525605]
[1754549419181,1.1636446,768.48,767.74,1.83525605]
[1754549419688,1.1636446,768.46,767.74,1.83525605]
[1754549420086,1.1636446,768.47,767.75,0.87525605]
[1754549420287,1.1636446,768.47,767.74,1.83525605]
[1754549420487,1.1636446,768.43,767.76,0.87525605]
[1754549421286,1.1636446,768.41,767.76,0.87525605]
[1754549421484,1.1636446,768.42,767.75,0.87525605]
[1754549422287,1.1636446,768.43,767.76,0.87525605]
[1754549424185,1.1636446,768.42,767.76,0.87525605]
[1754549424790,1.1636446,768.46,767.76,0.87525605]
[1754549425989,1.1636446,768.47,767.75,0.87525605]
[1754549426193,1.1636446,768.48,767.75,0.87525605]
[1754549427394,1.1636446,768.5,767.77,0.87525605]
[1754549428290,1.1636446,768.49,767.77,0.87525605]
[1754549429191,1.1636446,768.52,767.76,0.87525605]
[1754549429991,1.1636446,768.51,767.77,0.87525605]
[1754549430895,1.1636446,768.49,767.78,0.87525605]
[1754549431897,1.1636446,768.48,767.77,0.87525605]
[1754549432191,1.1636446,768.49,767.76,0.87525605]
[1754549432396,1.1636446,768.49,767.77,0.87525605]
[1754549432892,1.1636446,768.48,767.77,0.87525605]
[1754549433096,1.1636446,768.48,767.76,0.87525605]
[1754549433397,1.1636446,768.48,767.77,0.87525605]
[1754549434092,1.1636446,768.47,767.77,0.87525605]
[1754549434495,1.1636446,768.48,767.77,0.87525605]
[1754549434695,1.1636446,768.49,767.78,0.87525605]
[1754549435191,1.1636446,768.48,767.78,0.87525605]
[1754549435992,1.1636446,768.47,767.78,0.87525605]
[1754549436594,1.1636446,768.48,767.78,0.87525605]
[1754549436999,1.1636446,768.47,767.78,0.87525605]
[1754549437397,1.1636446,768.47,767.79,0.87525605]
[1754549439104,1.1636446,768.46,767.8,0.87525605]
[1754549440300,1.1636446,768.45,767.8,0.87525605]
[1754549440504,1.1636446,768.45,767.81,0.87525605]
[1754549440701,1.1636446,768.44,767.81,0.87525605]
[1754549440904,1.1636446,768.45,767.81,0.87525605]
[1754549441401,1.1636446,768.44,767.81,0.87525605]
[1754549441901,1.1636446,768.48,767.79,0.87525605]
[1754549442206,1.1636446,768.56,767.81,0.87525605]
[1754549442503,1.1636446,768.59,767.84,0.87525605]
[1754549443501,1.1636446,768.59,767.74,0.96]
[1754549443502,1.1636446,768.59,767.85,0.87525605]
[1754549445603,1.1636446,768.61,767.87,0.87525605]
[1754549447408,1.1636446,768.59,767.85,0.87525605]
[1754549448208,1.1636446,768.59,767.86,0.87525605]
[1754549448504,1.1636446,768.59,767.85,0.87525605]
[1754549449210,1.1636446,768.59,767.86,0.87525605]
[1754549449504,1.1636446,768.59,767.85,0.87525605]
[1754549450105,1.1636446,768.59,767.86,0.87525605]
[1754549451304,1.1636446,768.59,767.85,0.87525605]
[1754549451910,1.1636446,768.5,767.89,0.87525605]
[1754549452205,1.1636446,768.5,767.74,0.96]
[1754549452206,1.1636446,768.49,767.9,0.87525605]
[1754549452712,1.1636446,768.48,767.89,0.87525605]
[1754549453010,0.22650278,768.67,767.88,0.87768349]
[1754549453011,1.1636446,768.47,767.88,0.87768349]
[1754549453211,1.1636446,768.48,767.88,0.87768349]
[1754549455409,1.1636446,768.48,767.87,0.87768349]
[1754549458315,1.1636446,768.51,767.74,0.96]
[1754549458517,1.1636446,768.49,767.74,0.96]
[1754549458816,1.1636446,768.48,767.74,0.96]
[1754549459217,1.1636446,768.49,767.74,0.96]
[1754549460318,1.1636446,768.49,767.71,0.87768349]
[1754549461214,1.1636446,768.47,767.69,0.87768349]
[1754549462420,1.1636446,768.47,767.68,0.87768349]
[1754549463322,1.1636446,768.48,767.69,0.951]
[1754549463623,1.1636446,768.49,767.69,0.951]
[1754549463821,1.1636446,768.46,767.69,0.951]
[1754549464226,1.1636446,768.45,767.69,0.951]
[1754549465522,1.1636446,768.47,767.69,0.951]
[1754549465725,1.1636446,768.43,767.69,0.951]
[1754549467624,1.1636446,768.42,767.69,0.951]
[1754549468229,1.1636446,768.38,767.69,0.951]
[1754549468827,1.1636446,768.36,767.69,0.951]
[1754549469030,1.1636446,768.39,767.69,0.951]
[1754549469229,1.1636446,768.42,767.69,0.951]
[1754549470124,1.1636446,768.48,767.69,0.951]
[1754549470325,1.1636446,768.5,767.69,0.951]
[1754549470630,1.1636446,768.53,767.69,0.951]
[1754549471131,1.1636446,768.49,767.69,0.951]
[1754549471325,1.1636446,768.51,767.7,0.87768349]
[1754549471928,1.1636446,768.59,767.78,0.87768349]
[1754549472133,1.1636446,768.58,767.78,0.87768349]
[1754549472334,1.1636446,768.59,767.78,0.87768349]
[1754549474533,1.1636446,768.6,767.77,0.87768349]
[1754549475834,1.1636446,768.61,767.77,0.87768349]
[1754549477335,1.1636446,768.62,767.78,0.87768349]
[1754549477536,1.1636446,768.59,767.79,0.87768349]
[1754549478633,1.1636446,768.57,767.8,0.87768349]
[1754549479140,1.1636446,768.57,767.79,0.87768349]
[1754549480235,1.1636446,768.57,767.8,0.87768349]
[1754549480435,1.1636446,768.65,767.87,0.87768349]
[1754549481238,1.1636446,768.66,767.87,0.87768349]
[1754549481539,1.1636446,768.69,767.9,0.87768349]
[1754549482440,1.1636446,768.69,767.89,0.87768349]
[1754549483441,1.1636446,768.71,767.88,0.87768349]
[1754549483737,1.1636446,768.7,767.88,0.87768349]
[1754549483941,1.1636446,768.68,767.89,0.87768349]
[1754549484342,1.1636446,768.68,767.88,0.87768349]
[1754549485041,1.1636446,768.7,767.9,0.87768349]
[1754549485439,1.1636446,768.71,767.9,0.87768349]
[1754549485740,1.1636446,768.7,767.9,0.87768349]
[1754549486238,0.22648656,768.82,767.9,0.87768349]
[1754549486239,1.1636446,768.71,767.9,0.87768349]
[1754549487140,1.1636446,768.73,767.89,0.87768349]
[1754549487341,1.1636446,768.72,767.88,0.87768349]
[1754549488243,1.1636446,768.73,767.88,0.87768349]
[1754549489047,1.1636446,768.72,767.89,0.87768349]
[1754549489343,1.1636446,768.73,767.88,0.87768349]
[1754549490043,1.1636446,768.72,767.89,0.87768349]
[1754549490244,1.1636446,768.72,767.88,0.87768349]
[1754549491248,1.1636446,768.73,767.88,0.87768349]
[1754549491448,1.1636446,768.74,767.88,0.87768349]
[1754549492349,1.1636446,768.74,767.87,0.87768349]
[1754549493253,1.1636446,768.73,767.87,0.87768349]
[1754549493651,1.1636446,768.74,767.87,0.87768349]
[1754549493847,1.1636446,768.75,767.87,0.87768349]
[1754549495248,1.1636446,768.75,767.86,0.87768349]
[1754549496051,1.1636446,768.76,767.86,0.87768349]
[1754549496352,1.1636446,768.77,767.87,1.356]
[1754549496952,0.22648656,768.82,767.87,1.356]
[1754549497748,1.1663054,768.75,767.87,2.23138746]
[1754549497948,1.1663054,768.74,767.87,2.23138746]
[1754549498153,1.1663054,768.77,767.87,1.356]
[1754549498652,1.1663054,768.78,767.87,1.356]
[1754549498849,1.1663054,768.77,767.87,1.356]
[1754549500953,1.1663054,768.78,767.87,1.356]
[1754549501454,1.1663054,768.77,767.87,1.356]
[1754549503454,1.1663054,768.76,767.87,1.356]
[1754549505357,1.1663054,768.75,767.87,1.356]
[1754549505958,1.1663054,768.74,767.87,1.356]
[1754549506358,1.1663054,768.75,767.87,1.356]
[1754549507761,1.1663054,768.76,767.87,1.356]
[1754549508061,1.1663054,768.7,767.87,1.356]
[1754549509263,1.1663054,768.69,767.87,1.356]
[1754549509562,1.1663054,768.71,767.87,1.356]
[1754549509862,0.22648656,768.82,767.87,1.356]
[1754549509863,1.1663054,768.73,767.87,1.356]
[1754549510763,1.1663054,768.71,767.87,1.356]
[1754549516267,1.1663054,768.7,767.87,1.356]
[1754549516663,1.1663054,768.68,767.87,1.356]
[1754549517568,1.1663054,768.63,767.87,1.356]
[1754549517971,1.1663054,768.62,767.87,1.356]
[1754549518664,1.1663054,768.59,767.87,1.356]
[1754549518865,1.1663054,768.58,767.87,1.356]
[1754549519368,1.1663054,768.54,767.87,1.356]
[1754549520371,1.1663054,768.54,767.54,0.87538746]
[1754549521472,1.1663054,768.55,767.53,0.87538746]
[1754549521771,0.22648656,768.82,767.37,0.22651678]
[1754549521772,1.1663054,768.64,767.37,0.22651678]
[1754549521970,1.1663054,768.61,767.37,0.22651678]
[1754549522168,1.1663054,768.62,767.3,0.87538746]
[1754549522971,1.1663054,768.62,767.31,1.331]
[1754549523370,1.1663054,768.64,767.31,1.331]
[1754549523573,1.1663054,768.65,767.31,1.331]
[1754549524273,1.1663054,768.74,767.31,1.331]
[1754549524673,1.1663054,768.76,767.31,1.331]
[1754549525274,1.1663054,768.77,767.31,1.331]
[1754549526272,1.1663054,768.78,767.31,1.331]
[1754549526673,1.1663054,768.77,767.31,1.331]
[1754549526872,1.1663054,768.76,767.31,1.331]
[1754549527070,1.1663054,768.77,767.31,1.331]
[1754549528176,1.1663054,768.71,767.32,0.87538746]
[1754549528371,1.1663054,768.72,767.32,0.87538746]
[1754549529075,1.1663054,768.7,767.32,0.87538746]
[1754549529274,1.1663054,768.69,767.33,0.87538746]
[1754549530175,1.1663054,768.7,767.33,0.87538746]
[1754549531174,1.1663054,768.71,767.32,0.87538746]
[1754549531473,1.1663054,768.7,767.33,0.87538746]
[1754549531677,1.1663054,768.73,767.31,2.20638746]
[1754549532077,1.1663054,768.77,767.35,0.87538746]
[1754549533277,1.1663054,768.78,767.35,0.87538746]
[1754549534075,1.1663054,768.7,767.38,0.87538746]
[1754549535274,1.1663054,768.71,767.38,0.87538746]
[1754549535477,1.1663054,768.71,767.31,1.331]
[1754549535478,1.1663054,768.74,767.36,0.87538746]
[1754549536978,1.1663054,768.74,767.37,0.87538746]
[1754549537178,1.1663054,768.75,767.37,0.87538746]
[1754549537375,1.1663054,768.7,767.39,0.87538746]
[1754549537878,0.22648656,768.82,767.38,0.87538746]
[1754549537879,1.1663054,768.69,767.38,0.87538746]
[1754549538774,1.1663054,768.72,767.36,0.87538746]
[1754549539176,1.1663054,768.73,767.36,0.87538746]
[1754549539480,1.1663054,768.72,767.36,0.87538746]
[1754549540380,1.1663054,768.72,767.35,0.87538746]
[1754549541283,1.1663054,768.72,767.34,0.87538746]
[1754549541582,1.1663054,768.67,767.37,0.87538746]
[1754549541984,1.1663054,768.64,767.38,0.87538746]
[1754549542181,1.1663054,768.65,767.38,0.87538746]
[1754549542381,1.1663054,768.64,767.38,0.87538746]
[1754549542683,1.1663054,768.65,767.39,0.87538746]
[1754549543284,1.1663054,768.65,767.38,0.87538746]
[1754549544084,1.1663054,768.66,767.39,0.87538746]
[1754549545082,1.1663054,768.67,767.39,0.87538746]
[1754549545285,1.1663054,768.63,767.4,0.87538746]
[1754549546782,1.1663054,768.71,767.37,0.87538746]
[1754549546983,1.1663054,768.67,767.39,0.87538746]
[1754549547183,1.1663054,768.71,767.46,0.87538746]
[1754549547387,1.1663054,768.75,767.49,0.87538746]
[1754549547583,1.1663054,768.75,767.5,0.87538746]
[1754549547982,1.1663054,768.75,767.31,2.4981832]
[1754549547983,1.1663054,768.74,767.49,0.87538746]
[1754549549986,1.1663054,768.74,767.5,0.87538746]
[1754549551290,1.1663054,768.72,767.49,0.87538746]
[1754549553287,1.1663054,768.71,767.49,0.87538746]
[1754549554192,1.1663054,768.72,767.49,0.87538746]
[1754549554491,1.1663054,768.71,767.5,0.87538746]
[1754549554987,1.1663054,768.66,767.52,0.87538746]
[1754549555191,1.1663054,768.64,767.51,0.87538746]
[1754549556392,1.1663054,768.55,767.55,0.87538746]
[1754549556794,1.1663054,768.55,767.56,0.87538746]
[1754549557088,0.22648656,768.82,767.56,0.87538746]
[1754549557089,1.1663054,768.54,767.56,0.87538746]
[1754549558692,1.1663054,768.54,767.43,1.1671832]
[1754549558892,1.1663054,768.54,767.56,0.87382602]
[1754549559192,1.1663054,768.55,767.56,0.87382602]
[1754549559488,1.1663054,768.54,767.56,0.87382602]
[1754549559693,1.1663054,768.55,767.56,0.87382602]
[1754549560088,1.1663054,768.67,767.52,0.87382602]
[1754549560391,1.1663054,768.67,767.51,0.87382602]
[1754549561187,1.1663054,768.66,767.52,0.87382602]
[1754549561393,1.1663054,768.67,767.52,0.87382602]
[1754549562391,1.1663054,768.66,767.52,0.87382602]
[1754549562589,0.22648656,768.82,767.53,0.87382602]
[1754549562590,1.1663054,768.67,767.53,0.87382602]
[1754549562789,1.1663054,768.68,767.55,0.87382602]
[1754549563189,1.1663054,768.71,767.58,0.87382602]
[1754549563389,1.1663054,768.7,767.58,0.87382602]
[1754549564192,1.1663054,768.74,767.62,0.87382602]
[1754549564591,1.1663054,768.74,767.63,0.87382602]
[1754549564793,0.22648656,768.82,767.77,0.87382602]
[1754549567092,0.22648656,768.82,767.75,0.87382602]
[1754549567898,0.22648656,768.82,767.76,0.87382602]
[1754549568199,0.22648656,768.82,767.75,0.87382602]
[1754549568396,0.22648656,768.82,767.76,0.87382602]
[1754549570008,1.1663054,768.75,767.79,0.87382602]
[1754549570306,1.1663054,768.7,767.81,0.87382602]
[1754549571808,1.1663054,768.71,767.82,1.043]
[1754549572504,1.1663054,768.7,767.82,1.043]
[1754549574209,1.1663054,768.7,767.82,1.91682602]
[1754549576210,1.1663054,768.7,767.82,1.043]
[1754549576409,1.1663054,768.69,767.82,1.91682602]
[1754549577210,1.1663054,768.7,767.82,1.043]
[1754549577705,1.1663054,768.69,767.82,1.91682602]
[1754549578204,1.1663054,768.7,767.82,1.043]
[1754549579306,1.1663054,768.71,767.82,1.043]
[1754549584007,1.1663054,768.71,767.81,0.87382602]
[1754549584512,1.1663054,768.75,767.79,0.87382602]
[1754549584712,1.1663054,768.73,767.77,0.87382602]
[1754549586612,1.1663054,768.72,767.76,0.87382602]
[1754549586809,1.1663054,768.76,767.75,0.87382602]
[1754549587412,1.1663054,768.75,767.75,0.87382602]
[1754549587613,1.1663054,768.75,767.76,0.991]
[1754549588512,1.1663054,768.73,767.76,0.991]
[1754549589214,1.1663054,768.72,767.76,0.991]
[1754549589614,1.1663054,768.73,767.76,0.991]
[1754549590219,1.1663054,768.72,767.76,0.991]
[1754549590515,1.1663054,768.73,767.76,0.991]
[1754549590715,1.1663054,768.71,767.76,0.991]
[1754549591620,1.1663054,768.7,767.76,0.991]
[1754549591920,1.1663054,768.75,767.76,0.991]
[1754549592116,1.1663054,768.68,767.76,0.991]
[1754549592315,1.1663054,768.66,767.76,0.991]
[1754549593120,1.1663054,768.65,767.76,0.991]
[1754549593320,1.1663054,768.66,767.76,0.991]
[1754549594719,1.1663054,768.65,767.76,0.991]
[1754549596224,1.1663054,768.64,767.76,0.991]
[1754549596624,1.1663054,768.63,767.76,0.991]
[1754549597424,1.1663054,768.61,767.76,0.991]
[1754549599124,1.1663054,768.6,767.76,0.991]
[1754549599322,1.1663054,768.61,767.76,0.991]
[1754549599621,1.1663054,768.61,767.64,0.87382602]
[1754549600325,1.1663054,768.61,767.65,0.87382602]
[1754549601224,1.1663054,768.6,767.65,0.87382602]
[1754549601622,1.1663054,768.6,767.29,0.22659274]
[1754549601623,1.1663054,768.56,767.67,0.87382602]
[1754549602027,1.1663054,768.54,767.67,0.87382602]
[1754549602228,1.1663054,768.54,767.68,0.87382602]
[1754549602426,1.1663054,768.52,767.66,0.87382602]
[1754549603225,1.1663054,768.49,767.68,0.87382602]
[1754549603428,1.1663054,768.5,767.68,0.87382602]
[1754549603626,1.1663054,768.5,767.69,1.011]
[1754549605324,1.1663054,768.5,767.69,1.88672591]
[1754549605728,1.1663054,768.69,767.69,1.011]
[1754549606027,1.1663054,768.65,767.69,1.011]
[1754549607231,1.1663054,768.64,767.69,1.011]
[1754549611133,1.1663054,768.63,767.69,1.011]
[1754549612331,1.1663054,768.6,767.69,1.011]
[1754549615534,1.1663054,768.48,767.69,1.011]
[1754549618636,1.1663054,768.48,767.58,0.87572591]
[1754549619334,1.1663054,768.45,767.59,0.87572591]
[1754549619534,1.1663054,768.42,767.6,0.87572591]
[1754549619734,1.1663054,768.42,767.61,0.87572591]
[1754549621238,1.1663054,768.42,767.6,0.87572591]
[1754549622038,1.1663054,768.41,767.61,0.87572591]
[1754549622533,1.1663054,768.4,767.62,0.87572591]
[1754549622837,1.1663054,768.4,767.62,1.96772591]
[1754549623235,1.1663054,768.4,767.62,1.092]
[1754549625844,1.1663054,768.41,767.62,1.092]
[1754549626738,1.1663054,768.63,767.62,1.092]